[Event "Titled Tuesday Blitz June 27 Late 2023"]
[White "Ashraf, Artin"]
[Black "Durarbayli, Vasif"]
[WhiteFideId "22514805"]
[BlackFideId "13402935"]
[WhiteElo "2654"]
[BlackElo "2911"]
[Result "0-1"]
[Round "7"]
[TimeControl "180+2"]
[Date "2023.06.27"]
[WhiteClock "0:00:15"]
[BlackClock "0:00:32"]
[Board "27"]

1. c4 {[%clk 0:03:00]}  c6 {[%clk 0:02:58]} 2. Qa4 {[%clk 0:02:59]}  Nf6 {[%clk 0:02:55]} 3. Nc3 {[%clk 0:02:55]}  e5 {[%clk 0:02:54]} 4. g3 {[%clk 0:02:53]}  Bc5 {[%clk 0:02:52]} 5. Bg2 {[%clk 0:02:52]}  O-O {[%clk 0:02:52]} 6. Nf3 {[%clk 0:02:50]}  e4 {[%clk 0:02:52]} 7. Ne5 {[%clk 0:02:33]}  d6 {[%clk 0:02:20]} 8. Nxc6 {[%clk 0:02:26]}  Nxc6 {[%clk 0:02:17]} 9. Nxe4 {[%clk 0:02:26]}  Nxe4 {[%clk 0:02:15]} 10. Bxe4 {[%clk 0:02:27]}  Re8 {[%clk 0:02:13]} 11. Bg2 {[%clk 0:02:21]}  Bg4 {[%clk 0:01:52]} 12. e3 {[%clk 0:02:18]}  Nd4 {[%clk 0:01:48]} 13. O-O {[%clk 0:02:18]}  Nf3+ {[%clk 0:01:42]} 14. Kh1 {[%clk 0:02:17]}  Qf6 {[%clk 0:01:24]} 15. d4 {[%clk 0:02:15]}  Qh6 {[%clk 0:01:16]} 16. h4 {[%clk 0:02:14]}  Bb6 {[%clk 0:01:15]} 17. c5 {[%clk 0:02:06]}  Bc7 {[%clk 0:01:03]} 18. e4 {[%clk 0:01:37]}  Qh5 {[%clk 0:00:49]} 19. cxd6 {[%clk 0:01:29]}  Bxd6 {[%clk 0:00:45]} 20. e5 {[%clk 0:01:29]}  Be7 {[%clk 0:00:41]} 21. e6 {[%clk 0:00:15]}  Bxe6 {[%clk 0:00:32]} 0-1


[Site "https://www.chess.com"]

[Event "Titled Tuesday Blitz June 27 Late 2023"]
[White "Ter-Sahakyan, Samvel"]
[Black "De La Villa Garcia, Jesus Maria"]
[WhiteFideId "13302531"]
[BlackFideId "2200040"]
[WhiteElo "2893"]
[BlackElo "2651"]
[Result "0-1"]
[Round "7"]
[TimeControl "180+2"]
[Date "2023.06.27"]
[WhiteClock "0:00:00"]
[BlackClock "0:00:02"]
[Board "28"]

1. d4 {[%clk 0:02:55]}  Nf6 {[%clk 0:02:59]} 2. c4 {[%clk 0:02:55]}  e6 {[%clk 0:02:59]} 3. Nc3 {[%clk 0:02:52]}  Bb4 {[%clk 0:02:58]} 4. Nf3 {[%clk 0:02:51]}  b6 {[%clk 0:02:55]} 5. e3 {[%clk 0:02:50]}  Bb7 {[%clk 0:02:54]} 6. Bd3 {[%clk 0:02:50]}  Ne4 {[%clk 0:02:53]} 7. Qc2 {[%clk 0:02:42]}  Bxc3+ {[%clk 0:02:53]} 8. bxc3 {[%clk 0:02:41]}  f5 {[%clk 0:02:53]} 9. O-O {[%clk 0:02:37]}  O-O {[%clk 0:02:52]} 10. Ne1 {[%clk 0:02:31]}  Qh4 {[%clk 0:02:37]} 11. f3 {[%clk 0:02:30]}  Ng5 {[%clk 0:02:23]} 12. Qf2 {[%clk 0:01:59]}  Qxf2+ {[%clk 0:02:07]} 13. Rxf2 {[%clk 0:01:59]}  d6 {[%clk 0:02:08]} 14. c5 {[%clk 0:01:51]}  Nd7 {[%clk 0:02:06]} 15. cxd6 {[%clk 0:01:49]}  cxd6 {[%clk 0:02:07]} 16. a4 {[%clk 0:01:48]}  Rfc8 {[%clk 0:02:01]} 17. Ba3 {[%clk 0:01:43]}  Nf7 {[%clk 0:01:46]} 18. Rc2 {[%clk 0:01:37]}  a5 {[%clk 0:01:33]} 19. h4 {[%clk 0:01:33]}  Bc6 {[%clk 0:01:30]} 20. Bb2 {[%clk 0:01:33]}  Rc7 {[%clk 0:01:28]} 21. c4 {[%clk 0:01:30]}  Rac8 {[%clk 0:01:27]} 22. d5 {[%clk 0:01:19]}  exd5 {[%clk 0:01:17]} 23. Bxf5 {[%clk 0:01:19]}  dxc4 {[%clk 0:01:00]} 24. Rxc4 {[%clk 0:01:18]}  Bd5 {[%clk 0:00:50]} 25. Rd4 {[%clk 0:01:08]}  Bb3 {[%clk 0:00:47]} 26. Ra3 {[%clk 0:01:00]}  Bc4 {[%clk 0:00:44]} 27. Rxc4 {[%clk 0:00:59]}  Rxc4 {[%clk 0:00:43]} 28. Bxd7 {[%clk 0:00:59]}  R8c7 {[%clk 0:00:41]} 29. Bb5 {[%clk 0:00:54]}  Rb4 {[%clk 0:00:40]} 30. Bd4 {[%clk 0:00:45]}  Ne5 {[%clk 0:00:36]} 31. Bxe5 {[%clk 0:00:43]}  dxe5 {[%clk 0:00:36]} 32. Nd3 {[%clk 0:00:42]}  Rxh4 {[%clk 0:00:30]} 33. Nxe5 {[%clk 0:00:42]}  g6 {[%clk 0:00:28]} 34. e4 {[%clk 0:00:40]}  Rh5 {[%clk 0:00:28]} 35. Nd3 {[%clk 0:00:28]}  Rc2 {[%clk 0:00:27]} 36. f4 {[%clk 0:00:24]}  Rh4 {[%clk 0:00:24]} 37. Bd7 {[%clk 0:00:19]}  g5 {[%clk 0:00:18]} 38. e5 {[%clk 0:00:15]}  gxf4 {[%clk 0:00:13]} 39. e6 {[%clk 0:00:15]}  Kf8 {[%clk 0:00:14]} 40. Ne5 {[%clk 0:00:13]}  Ke7 {[%clk 0:00:12]} 41. Rd3 {[%clk 0:00:10]}  Rc1+ {[%clk 0:00:05]} 42. Kf2 {[%clk 0:00:10]}  Rhh1 {[%clk 0:00:06]} 43. Kf3 {[%clk 0:00:10]}  Rhf1+ {[%clk 0:00:05]} 44. Kg4 {[%clk 0:00:09]}  Rg1 {[%clk 0:00:06]} 45. Kxf4 {[%clk 0:00:07]}  Rcf1+ {[%clk 0:00:04]} 46. Ke4 {[%clk 0:00:06]}  Rxg2 {[%clk 0:00:04]} 47. Nc6+ {[%clk 0:00:06]}  Kf6 {[%clk 0:00:03]} 48. Kd5 {[%clk 0:00:07]}  Rg5+ {[%clk 0:00:01]} 49. Kd6 {[%clk 0:00:06]}  Rc1 {[%clk 0:00:02]} 50. e7 {[%clk 0:00:05]}  Re1 {[%clk 0:00:03]} 51. Rf3+ {[%clk 0:00:04]}  Kg7 {[%clk 0:00:02]} 52. e8=Q {[%clk 0:00:05]}  Rxe8 {[%clk 0:00:03]} 53. Bxe8 {[%clk 0:00:05]}  Rg4 {[%clk 0:00:04]} 54. Ne5 {[%clk 0:00:03]}  Rb4 {[%clk 0:00:02]} 55. Ke6 {[%clk 0:00:03]}  h5 {[%clk 0:00:01]} 56. Rg3+ {[%clk 0:00:03]}  Kh6 {[%clk 0:00:01]} 57. Nf7+ {[%clk 0:00:03]}  Kh7 {[%clk 0:00:02]} 58. Ne5 {[%clk 0:00:03]}  h4 {[%clk 0:00:02]} 59. Rg4 {[%clk 0:00:03]}  Kh6 {[%clk 0:00:02]} 60. Rxb4 {[%clk 0:00:02]}  axb4 {[%clk 0:00:02]} 61. Nd3 {[%clk 0:00:00]}  h3 {[%clk 0:00:02]} 0-1


[Site "https://www.chess.com"]

[Event "Titled Tuesday Blitz June 27 Late 2023"]
[White "Kavutskiy, Konstantin"]
[Black "Harshavardhan G B"]
[WhiteFideId "2026384"]
[BlackFideId "25059009"]
[WhiteElo "2635"]
[BlackElo "2811"]
[Result "0-1"]
[Round "7"]
[TimeControl "180+2"]
[Date "2023.06.27"]
[WhiteClock "0:00:04"]
[BlackClock "0:00:48"]
[Board "31"]

1. d4 {[%clk 0:03:00]}  Nf6 {[%clk 0:02:58]} 2. Bg5 {[%clk 0:02:56]}  d5 {[%clk 0:02:56]} 3. Nd2 {[%clk 0:02:56]}  c5 {[%clk 0:02:54]} 4. e3 {[%clk 0:02:56]}  Nc6 {[%clk 0:02:52]} 5. Ngf3 {[%clk 0:02:54]}  Ne4 {[%clk 0:02:51]} 6. Bf4 {[%clk 0:02:52]}  cxd4 {[%clk 0:02:48]} 7. exd4 {[%clk 0:02:49]}  Qb6 {[%clk 0:02:47]} 8. Nb3 {[%clk 0:02:47]}  Bg4 {[%clk 0:02:41]} 9. Be2 {[%clk 0:02:38]}  e6 {[%clk 0:02:41]} 10. O-O {[%clk 0:02:37]}  Bd6 {[%clk 0:02:34]} 11. Bxd6 {[%clk 0:02:36]}  Nxd6 {[%clk 0:02:35]} 12. c3 {[%clk 0:02:31]}  O-O {[%clk 0:02:30]} 13. h3 {[%clk 0:02:23]}  Bxf3 {[%clk 0:02:30]} 14. Bxf3 {[%clk 0:02:24]}  Nc4 {[%clk 0:02:26]} 15. Qe2 {[%clk 0:02:17]}  a5 {[%clk 0:02:20]} 16. Rab1 {[%clk 0:02:15]}  a4 {[%clk 0:02:19]} 17. Nc5 {[%clk 0:02:15]}  Qc7 {[%clk 0:02:16]} 18. b3 {[%clk 0:02:06]}  axb3 {[%clk 0:02:13]} 19. axb3 {[%clk 0:02:07]}  Nd6 {[%clk 0:02:12]} 20. Ra1 {[%clk 0:02:01]}  b6 {[%clk 0:02:06]} 21. Nd3 {[%clk 0:01:55]}  Na5 {[%clk 0:02:06]} 22. Qb2 {[%clk 0:01:45]}  Rac8 {[%clk 0:02:05]} 23. Rfc1 {[%clk 0:01:44]}  Nb5 {[%clk 0:02:04]} 24. Rc2 {[%clk 0:01:38]}  Qd6 {[%clk 0:01:53]} 25. Ne5 {[%clk 0:01:28]}  Rc7 {[%clk 0:01:47]} 26. Be2 {[%clk 0:01:26]}  Na7 {[%clk 0:01:40]} 27. b4 {[%clk 0:01:17]}  N5c6 {[%clk 0:01:40]} 28. Nxc6 {[%clk 0:01:07]}  Nxc6 {[%clk 0:01:41]} 29. Bd3 {[%clk 0:01:06]}  Rfc8 {[%clk 0:01:40]} 30. Ra6 {[%clk 0:01:05]}  Ne7 {[%clk 0:01:37]} 31. b5 {[%clk 0:00:56]}  g6 {[%clk 0:01:34]} 32. Qa3 {[%clk 0:00:51]}  Qxa3 {[%clk 0:01:29]} 33. Rxa3 {[%clk 0:00:52]}  Nf5 {[%clk 0:01:30]} 34. Bxf5 {[%clk 0:00:51]}  gxf5 {[%clk 0:01:29]} 35. Kf1 {[%clk 0:00:48]}  Rc4 {[%clk 0:01:29]} 36. Ra6 {[%clk 0:00:46]}  Rxc3 {[%clk 0:01:28]} 37. Rxc3 {[%clk 0:00:44]}  Rxc3 {[%clk 0:01:28]} 38. Rxb6 {[%clk 0:00:45]}  Rd3 {[%clk 0:01:26]} 39. Rd6 {[%clk 0:00:40]}  Rxd4 {[%clk 0:01:26]} 40. b6 {[%clk 0:00:40]}  Rb4 {[%clk 0:01:26]} 41. Ke2 {[%clk 0:00:39]}  Rb2+ {[%clk 0:01:23]} 42. Ke3 {[%clk 0:00:39]}  Kg7 {[%clk 0:01:23]} 43. g3 {[%clk 0:00:37]}  Kf6 {[%clk 0:01:22]} 44. h4 {[%clk 0:00:34]}  Ke5 {[%clk 0:01:21]} 45. Rd7 {[%clk 0:00:30]}  Rb3+ {[%clk 0:01:16]} 46. Ke2 {[%clk 0:00:29]}  Rxb6 {[%clk 0:01:15]} 47. Rxf7 {[%clk 0:00:29]}  h5 {[%clk 0:01:15]} 48. Rh7 {[%clk 0:00:27]}  Rb2+ {[%clk 0:01:15]} 49. Kf3 {[%clk 0:00:26]}  d4 {[%clk 0:01:14]} 50. Rxh5 {[%clk 0:00:25]}  Rb3+ {[%clk 0:01:15]} 51. Kg2 {[%clk 0:00:22]}  d3 {[%clk 0:01:15]} 52. Rh8 {[%clk 0:00:21]}  Rb4 {[%clk 0:01:11]} 53. Kf3 {[%clk 0:00:20]}  Rd4 {[%clk 0:01:06]} 54. Ke3 {[%clk 0:00:07]}  d2 {[%clk 0:01:02]} 55. f4+ {[%clk 0:00:07]}  Kf6 {[%clk 0:01:03]} 56. Kxd4 {[%clk 0:00:05]}  d1=Q+ {[%clk 0:01:02]} 57. Ke3 {[%clk 0:00:06]}  Qe1+ {[%clk 0:00:51]} 58. Kf3 {[%clk 0:00:06]}  Qf1+ {[%clk 0:00:52]} 59. Ke3 {[%clk 0:00:06]}  Kg7 {[%clk 0:00:52]} 60. Rh5 {[%clk 0:00:05]}  Qe1+ {[%clk 0:00:47]} 61. Kf3 {[%clk 0:00:05]}  Qd1+ {[%clk 0:00:47]} 62. Kg2 {[%clk 0:00:04]}  Qxh5 {[%clk 0:00:48]} 0-1


[Site "https://www.chess.com"]

[Event "Titled Tuesday Blitz June 27 Late 2023"]
[White "Bazeev, German"]
[Black "Piesik, Piotr"]
[WhiteFideId "24119350"]
[BlackFideId "1136194"]
[WhiteElo "2808"]
[BlackElo "2627"]
[Result "1-0"]
[Round "7"]
[TimeControl "180+2"]
[Date "2023.06.27"]
[WhiteClock "0:01:41"]
[BlackClock "0:01:36"]
[Board "32"]

1. d4 {[%clk 0:03:00]}  c5 {[%clk 0:02:54]} 2. d5 {[%clk 0:03:00]}  e5 {[%clk 0:02:54]} 3. c4 {[%clk 0:03:00]}  d6 {[%clk 0:02:55]} 4. Nc3 {[%clk 0:03:01]}  Be7 {[%clk 0:02:56]} 5. Nf3 {[%clk 0:02:55]}  a6 {[%clk 0:02:55]} 6. a4 {[%clk 0:02:54]}  b6 {[%clk 0:02:55]} 7. h3 {[%clk 0:02:52]}  Ra7 {[%clk 0:02:53]} 8. e4 {[%clk 0:02:50]}  h6 {[%clk 0:02:53]} 9. g4 {[%clk 0:02:50]}  Bg5 {[%clk 0:02:52]} 10. Nxg5 {[%clk 0:02:49]}  hxg5 {[%clk 0:02:53]} 11. Rg1 {[%clk 0:02:44]}  Nd7 {[%clk 0:02:50]} 12. Ne2 {[%clk 0:02:41]}  Nf8 {[%clk 0:02:47]} 13. Ng3 {[%clk 0:02:41]}  Ng6 {[%clk 0:02:46]} 14. a5 {[%clk 0:02:37]}  Nf4 {[%clk 0:02:38]} 15. axb6 {[%clk 0:02:35]}  Qxb6 {[%clk 0:02:36]} 16. Qa4+ {[%clk 0:02:35]}  Bd7 {[%clk 0:02:35]} 17. Qa5 {[%clk 0:02:36]}  Qxa5+ {[%clk 0:02:33]} 18. Rxa5 {[%clk 0:02:37]}  Nxh3 {[%clk 0:02:25]} 19. Rh1 {[%clk 0:02:23]}  Bxg4 {[%clk 0:02:25]} 20. f3 {[%clk 0:02:21]}  Bd7 {[%clk 0:02:14]} 21. Nf5 {[%clk 0:02:22]}  g6 {[%clk 0:02:14]} 22. Nxd6+ {[%clk 0:02:22]}  Ke7 {[%clk 0:02:14]} 23. Be3 {[%clk 0:02:22]}  Rc7 {[%clk 0:02:05]} 24. Rxa6 {[%clk 0:02:14]}  Nf6 {[%clk 0:01:53]} 25. Nb5 {[%clk 0:02:14]}  Rcc8 {[%clk 0:01:47]} 26. Ra7 {[%clk 0:02:00]}  Nf4 {[%clk 0:01:45]} 27. Rxh8 {[%clk 0:02:00]}  Rxh8 {[%clk 0:01:44]} 28. Bxc5+ {[%clk 0:02:01]}  Kd8 {[%clk 0:01:41]} 29. Ra8+ {[%clk 0:01:56]}  Bc8 {[%clk 0:01:42]} 30. Bb6+ {[%clk 0:01:41]}  Kd7 {[%clk 0:01:36]} 31. Ra7+ {[%clk 0:01:41]} 1-0


[Site "https://www.chess.com"]

[Event "Titled Tuesday Blitz June 27 Late 2023"]
[White "Grinev, Valeriy"]
[Black "Morefield, Jason"]
[WhiteFideId "14117517"]
[BlackFideId "30920825"]
[WhiteElo "2615"]
[BlackElo "2764"]
[Result "0-1"]
[Round "7"]
[TimeControl "180+2"]
[Date "2023.06.27"]
[WhiteClock "0:00:08"]
[BlackClock "0:00:16"]
[Board "35"]

1. e4 {[%clk 0:03:00]}  d6 {[%clk 0:02:58]} 2. Nc3 {[%clk 0:03:01]}  Nf6 {[%clk 0:02:57]} 3. d4 {[%clk 0:03:02]}  g6 {[%clk 0:02:58]} 4. f3 {[%clk 0:03:02]}  c6 {[%clk 0:02:57]} 5. Be3 {[%clk 0:03:03]}  Nbd7 {[%clk 0:02:58]} 6. Qd2 {[%clk 0:03:03]}  b5 {[%clk 0:02:57]} 7. a3 {[%clk 0:03:00]}  Bb7 {[%clk 0:02:56]} 8. g4 {[%clk 0:02:58]}  h5 {[%clk 0:02:48]} 9. g5 {[%clk 0:02:56]}  Nh7 {[%clk 0:02:47]} 10. h4 {[%clk 0:02:56]}  Bg7 {[%clk 0:02:47]} 11. Bh3 {[%clk 0:02:56]}  Nb6 {[%clk 0:02:47]} 12. b3 {[%clk 0:02:55]}  O-O {[%clk 0:02:41]} 13. Nce2 {[%clk 0:02:48]}  d5 {[%clk 0:02:26]} 14. e5 {[%clk 0:02:43]}  Bc8 {[%clk 0:02:23]} 15. Nf4 {[%clk 0:02:39]}  Bxh3 {[%clk 0:02:17]} 16. Ngxh3 {[%clk 0:02:38]}  e6 {[%clk 0:02:16]} 17. Ng1 {[%clk 0:02:35]}  Re8 {[%clk 0:02:14]} 18. Nge2 {[%clk 0:02:35]}  Nd7 {[%clk 0:02:07]} 19. Ng3 {[%clk 0:02:34]}  c5 {[%clk 0:02:02]} 20. c3 {[%clk 0:02:32]}  a5 {[%clk 0:01:49]} 21. Nfxh5 {[%clk 0:02:31]}  gxh5 {[%clk 0:01:49]} 22. Nxh5 {[%clk 0:02:31]}  b4 {[%clk 0:01:38]} 23. Nf6+ {[%clk 0:02:23]}  Ndxf6 {[%clk 0:01:21]} 24. gxf6 {[%clk 0:02:19]}  bxc3 {[%clk 0:01:14]} 25. Qg2 {[%clk 0:02:15]}  Nxf6 {[%clk 0:01:14]} 26. exf6 {[%clk 0:02:13]}  Qxf6 {[%clk 0:01:12]} 27. Rg1 {[%clk 0:02:06]}  cxd4 {[%clk 0:00:58]} 28. Bg5 {[%clk 0:02:00]}  Qe5+ {[%clk 0:00:54]} 29. Kf1 {[%clk 0:02:01]}  Kh7 {[%clk 0:00:31]} 30. Re1 {[%clk 0:01:56]}  Qf5 {[%clk 0:00:31]} 31. Be7 {[%clk 0:01:49]}  Rg8 {[%clk 0:00:28]} 32. h5 {[%clk 0:01:36]}  Bf6 {[%clk 0:00:24]} 33. Bxf6 {[%clk 0:00:20]}  Rxg2 {[%clk 0:00:23]} 34. Rxg2 {[%clk 0:00:20]}  Qxf6 {[%clk 0:00:22]} 35. Kg1 {[%clk 0:00:20]}  d3 {[%clk 0:00:18]} 36. f4 {[%clk 0:00:17]}  d2 {[%clk 0:00:18]} 37. Rf1 {[%clk 0:00:14]}  Rg8 {[%clk 0:00:16]} 38. f5 {[%clk 0:00:14]}  Rxg2+ {[%clk 0:00:16]} 39. Kxg2 {[%clk 0:00:15]}  c2 {[%clk 0:00:15]} 40. fxe6 {[%clk 0:00:15]}  Qxf1+ {[%clk 0:00:14]} 41. Kxf1 {[%clk 0:00:14]}  d1=Q+ {[%clk 0:00:15]} 42. Kf2 {[%clk 0:00:08]}  c1=Q {[%clk 0:00:16]} 0-1


[Site "https://www.chess.com"]

[Event "Titled Tuesday Blitz June 27 Late 2023"]
[White "Tristan, Leonardo"]
[Black "Gubajdullin, Alexei"]
[WhiteFideId "113816"]
[BlackFideId "4141202"]
[WhiteElo "2762"]
[BlackElo "2610"]
[Result "1-0"]
[Round "7"]
[TimeControl "180+2"]
[Date "2023.06.27"]
[WhiteClock "0:00:37"]
[BlackClock "0:00:09"]
[Board "36"]

1. d4 {[%clk 0:03:00]}  Nf6 {[%clk 0:02:59]} 2. Nf3 {[%clk 0:03:01]}  g6 {[%clk 0:02:59]} 3. Bf4 {[%clk 0:03:01]}  Bg7 {[%clk 0:03:00]} 4. e3 {[%clk 0:03:02]}  O-O {[%clk 0:03:00]} 5. Be2 {[%clk 0:03:02]}  d6 {[%clk 0:03:01]} 6. O-O {[%clk 0:03:03]}  Nc6 {[%clk 0:03:01]} 7. c3 {[%clk 0:03:03]}  Nd7 {[%clk 0:03:02]} 8. e4 {[%clk 0:03:03]}  e5 {[%clk 0:03:01]} 9. Bg5 {[%clk 0:03:04]}  Bf6 {[%clk 0:02:58]} 10. Bxf6 {[%clk 0:03:03]}  Qxf6 {[%clk 0:02:58]} 11. Na3 {[%clk 0:02:57]}  a6 {[%clk 0:02:43]} 12. Nc4 {[%clk 0:02:54]}  Re8 {[%clk 0:02:39]} 13. Ne3 {[%clk 0:02:32]}  exd4 {[%clk 0:02:37]} 14. Nd5 {[%clk 0:02:32]}  Qd8 {[%clk 0:02:37]} 15. Nxd4 {[%clk 0:02:33]}  Rxe4 {[%clk 0:02:34]} 16. Bf3 {[%clk 0:02:33]}  Re5 {[%clk 0:02:33]} 17. Nxc6 {[%clk 0:02:29]}  bxc6 {[%clk 0:02:32]} 18. Nb4 {[%clk 0:02:29]}  Nb8 {[%clk 0:02:31]} 19. Bxc6 {[%clk 0:02:23]}  Ra7 {[%clk 0:02:28]} 20. Qd4 {[%clk 0:02:18]}  Rc5 {[%clk 0:02:19]} 21. Bf3 {[%clk 0:02:18]}  Bf5 {[%clk 0:02:06]} 22. Nd5 {[%clk 0:02:04]}  Nd7 {[%clk 0:01:08]} 23. b4 {[%clk 0:02:01]}  Rxd5 {[%clk 0:00:56]} 24. Bxd5 {[%clk 0:01:32]}  c5 {[%clk 0:00:55]} 25. Qf4 {[%clk 0:01:32]}  Qf6 {[%clk 0:00:18]} 26. g4 {[%clk 0:01:28]}  Qh4 {[%clk 0:00:17]} 27. h3 {[%clk 0:01:09]}  h5 {[%clk 0:00:16]} 28. Qg3 {[%clk 0:01:08]}  Qxg3+ {[%clk 0:00:15]} 29. fxg3 {[%clk 0:01:09]}  hxg4 {[%clk 0:00:16]} 30. hxg4 {[%clk 0:01:09]}  Be6 {[%clk 0:00:16]} 31. Bxe6 {[%clk 0:00:59]}  fxe6 {[%clk 0:00:16]} 32. Rae1 {[%clk 0:01:00]}  cxb4 {[%clk 0:00:15]} 33. Rxe6 {[%clk 0:00:52]}  bxc3 {[%clk 0:00:12]} 34. Rxg6+ {[%clk 0:00:52]}  Kh7 {[%clk 0:00:10]} 35. Rg5 {[%clk 0:00:41]}  Nc5 {[%clk 0:00:09]} 36. Kg2 {[%clk 0:00:37]}  Rb7 {[%clk 0:00:09]} 37. Rh1# {[%clk 0:00:37]} 1-0


[Site "https://www.chess.com"]

[Event "Titled Tuesday Blitz June 27 Late 2023"]
[White "Preotu, Razvan"]
[Black "Vdovin, Vadim"]
[WhiteFideId "2613280"]
[BlackFideId "24107158"]
[WhiteElo "2758"]
[BlackElo "2605"]
[Result "0-1"]
[Round "7"]
[TimeControl "180+2"]
[Date "2023.06.27"]
[WhiteClock "0:00:00"]
[BlackClock "0:00:09"]
[Board "37"]

1. e4 {[%clk 0:03:00]}  c5 {[%clk 0:02:55]} 2. Nf3 {[%clk 0:03:01]}  d6 {[%clk 0:02:56]} 3. d4 {[%clk 0:03:01]}  cxd4 {[%clk 0:02:56]} 4. Nxd4 {[%clk 0:03:02]}  Nf6 {[%clk 0:02:57]} 5. Nc3 {[%clk 0:03:02]}  a6 {[%clk 0:02:58]} 6. Be3 {[%clk 0:03:02]}  e5 {[%clk 0:02:57]} 7. Nb3 {[%clk 0:03:03]}  Be6 {[%clk 0:02:56]} 8. h3 {[%clk 0:02:54]}  Be7 {[%clk 0:02:35]} 9. Qf3 {[%clk 0:02:54]}  Nbd7 {[%clk 0:02:28]} 10. g4 {[%clk 0:02:49]}  h6 {[%clk 0:02:26]} 11. O-O-O {[%clk 0:02:46]}  b5 {[%clk 0:02:26]} 12. Nd5 {[%clk 0:02:29]}  Bxd5 {[%clk 0:02:25]} 13. exd5 {[%clk 0:02:30]}  Rc8 {[%clk 0:02:17]} 14. h4 {[%clk 0:02:28]}  e4 {[%clk 0:02:10]} 15. Qg2 {[%clk 0:02:18]}  Ne5 {[%clk 0:02:05]} 16. g5 {[%clk 0:01:39]}  hxg5 {[%clk 0:02:04]} 17. hxg5 {[%clk 0:01:40]}  Rxh1 {[%clk 0:02:04]} 18. Qxh1 {[%clk 0:01:41]}  Nfg4 {[%clk 0:02:04]} 19. Qxe4 {[%clk 0:01:38]}  Nxe3 {[%clk 0:01:39]} 20. Qxe3 {[%clk 0:01:39]}  Bxg5 {[%clk 0:01:28]} 21. f4 {[%clk 0:01:39]}  Bh6 {[%clk 0:01:29]} 22. Kb1 {[%clk 0:01:35]}  Kf8 {[%clk 0:01:29]} 23. Qe4 {[%clk 0:01:28]}  Ng6 {[%clk 0:01:16]} 24. f5 {[%clk 0:00:58]}  Ne5 {[%clk 0:01:16]} 25. Nd4 {[%clk 0:00:56]}  Qg5 {[%clk 0:01:06]} 26. Nc6 {[%clk 0:00:53]}  Re8 {[%clk 0:01:02]} 27. Qb4 {[%clk 0:00:49]}  Nf3 {[%clk 0:00:50]} 28. a4 {[%clk 0:00:33]}  Nd2+ {[%clk 0:00:42]} 29. Ka2 {[%clk 0:00:31]}  Qxf5 {[%clk 0:00:26]} 30. Qxd6+ {[%clk 0:00:30]}  Kg8 {[%clk 0:00:26]} 31. Bd3 {[%clk 0:00:18]}  Qg4 {[%clk 0:00:21]} 32. Qb4 {[%clk 0:00:15]}  Qxd1 {[%clk 0:00:17]} 33. Qd4 {[%clk 0:00:02]}  Qb1+ {[%clk 0:00:12]} 34. Ka3 {[%clk 0:00:02]}  Qa1+ {[%clk 0:00:13]} 35. Kb4 {[%clk 0:00:03]}  Qxa4+ {[%clk 0:00:13]} 36. Kc5 {[%clk 0:00:04]}  Qxd4+ {[%clk 0:00:13]} 37. Kxd4 {[%clk 0:00:05]}  Nf3+ {[%clk 0:00:13]} 38. Kc5 {[%clk 0:00:04]}  Ne5 {[%clk 0:00:14]} 39. d6 {[%clk 0:00:03]}  Nxc6 {[%clk 0:00:14]} 40. Kxc6 {[%clk 0:00:04]}  Bg5 {[%clk 0:00:13]} 41. d7 {[%clk 0:00:02]}  Re1 {[%clk 0:00:13]} 42. Kb7 {[%clk 0:00:02]}  a5 {[%clk 0:00:13]} 43. Bxb5 {[%clk 0:00:02]}  Rc1 {[%clk 0:00:12]} 44. c4 {[%clk 0:00:02]}  f5 {[%clk 0:00:12]} 45. Kb6 {[%clk 0:00:02]}  f4 {[%clk 0:00:12]} 46. c5 {[%clk 0:00:03]}  Bd8+ {[%clk 0:00:11]} 47. Kc6 {[%clk 0:00:03]}  Be7 {[%clk 0:00:10]} 48. Kb7 {[%clk 0:00:00]}  Rxc5 {[%clk 0:00:09]} 0-1


[Site "https://www.chess.com"]